bitfinex-derivatives/quotes_ETHF0:USTF0_20240901
["timestamp","ask_amount","ask_price","bid_price","bid_amount"]
[1725204666984,0.40723,2455.7,2455.5,4.0874]
[1725204667187,0.40725,2455.6,2455.5,4.0874]
[1725204668385,0.40725,2455.6,2455.4,0.00610625]
[1725204669483,3.21390625,2455.8,2455.4,0.00610625]
[1725204669484,0.40726,2455.5,2455.4,0.00610625]
[1725204670181,7.68786,2455.5,2455.1,4.0874]
[1725204670382,7.68786,2455.5,2454.6,0.3613]
[1725204670383,1.01829,2455.2,2454.6,0.3613]
[1725204670587,0.40739,2454.8,2454.6,0.3613]
[1725204670786,0.40742,2454.6,2454.3,17.94664164]
[1725204670992,0.0404,2455.0,2454.3,13.01503593]
[1725204671310,0.0606,2455.0,2454.6,3.2078]
[1725204671512,0.0606,2455.0,2454.6,3.61521]
[1725204671707,0.0606,2455.0,2454.6,3.2078]
[1725204672213,0.0606,2455.0,2454.4,0.00407082]
[1725204672511,1.48137,2454.9,2454.4,0.00407082]
[1725204672707,1.48137,2454.9,2454.3,1.1043]
[1725204672708,1.074,2454.9,2454.3,1.49563082]
[1725204672913,1.48137,2454.9,2454.3,1.49563082]
[1725204673108,1.48137,2454.9,2454.4,8.79219236]
[1725204673520,1.074,2454.9,2454.5,3.2078]
[1725204674014,0.7179,2454.9,2454.5,3.2078]
[1725204675316,1.12526,2454.9,2454.5,3.2078]
[1725204675709,0.7179,2454.9,2454.5,3.2078]
[1725204676205,0.7179,2454.9,2454.5,3.61523]
[1725204676413,0.7179,2454.9,2454.5,3.2078]
[1725204676605,0.7179,2454.9,2454.5,3.61523]
[1725204676813,0.7179,2454.9,2454.5,3.2078]
[1725204677011,0.0606,2455.0,2454.7,0.40738]
[1725204677319,0.0606,2455.0,2454.8,0.3803]
[1725204677615,0.46796,2455.0,2454.8,0.3803]
[1725204677821,0.0606,2455.0,2454.8,0.3803]
[1725204678019,0.46796,2455.0,2454.8,0.3803]
[1725204678320,0.0606,2455.0,2454.5,3.61523]
[1725204678522,0.46795,2455.0,2454.6,0.3803]
[1725204678815,0.0606,2455.0,2454.6,0.3803]
[1725204679019,0.46795,2455.0,2454.6,0.3197]
[1725204679716,0.0606,2455.0,2454.5,3.2078]
[1725204679912,0.0606,2455.0,2453.8,4.4774]
[1725204679913,2.81,2454.6,2453.8,4.4774]
[1725204680114,1.01851,2454.7,2453.8,0.39]
[1725204680115,2.81,2454.4,2453.8,0.39]
[1725204680312,2.81610625,2454.4,2453.8,0.3294]
[1725204680526,0.02388797,2454.3,2453.8,0.73694]
[1725204680715,0.43135797,2454.3,2453.8,0.73694]
[1725204681024,0.02388797,2454.3,2453.8,0.73694]
[1725204681209,0.00610625,2454.4,2454.0,3.2078]
[1725204681815,0.00610625,2454.4,2454.0,3.61531]
[1725204682213,0.00610625,2454.4,2454.1,0.3915]
[1725204682523,0.00610625,2454.4,2454.2,0.3829]
[1725204682727,0.41355625,2454.4,2454.1,0.3915]
[1725204683221,0.79545625,2454.4,2454.1,0.3915]
[1725204684209,0.00610625,2454.4,2454.2,0.40747]
[1725204684410,0.00610625,2454.4,2454.1,4.4659]
[1725204684620,0.00610625,2454.4,2454.1,0.79899]
[1725204684825,0.00610625,2454.4,2454.1,0.3915]
[1725204685024,0.40747,2454.3,2454.1,0.3915]
[1725204685224,0.00610625,2454.4,2453.9,3.5907]
[1725204685225,0.40751,2454.1,2453.9,3.2078]
[1725204686611,0.40751,2454.0,2453.9,3.2078]
[1725204687123,0.40751,2454.0,2453.7,1.1199]
[1725204687124,0.40753,2453.9,2453.7,1.1199]
[1725204687419,0.40752,2454.0,2453.7,1.1199]
[1725204688322,3.2078,2454.2,2453.7,1.1199]
[1725204688510,0.4075,2454.1,2453.7,1.1199]
[1725204688910,2.81,2453.8,2453.2,4.4954]
[1725204689133,4.0752,2454.0,2452.7,0.3539]
[1725204689134,3.2078,2453.3,2452.7,0.3539]
[1725204689426,3.2078,2453.3,2452.3,3.2078]
[1725204689427,2.81,2453.0,2452.3,3.2078]
[1725204689725,3.2078,2453.2,2452.2,8.46413811]
[1725204689726,2.81,2452.5,2452.2,8.46413811]
[1725204689923,2.81,2452.3,2451.9,3.2078]
[1725204690126,2.81,2452.3,2451.3,1.5072]
[1725204690127,0.40781,2452.2,2451.5,3.2078]
[1725204690329,4.93567353,2452.2,2451.5,3.2078]
[1725204690620,4.93567353,2452.2,2451.5,12.03933576]
[1725204690621,4.52786353,2452.2,2451.5,12.03933576]
[1725204690827,3.2078,2452.4,2451.8,3.2078]
[1725204691324,4.62091309,2452.3,2451.6,0.40791]
[1725204691530,4.62091309,2452.3,2451.7,3.2078]
[1725204691821,3.2078,2452.4,2451.7,16.75238809]
[1725204692035,3.2078,2452.7,2452.0,3.2078]
[1725204692532,3.2078,2452.7,2452.1,5.31056755]
[1725204692533,4.58846873,2452.7,2452.1,5.31056755]
[1725204692720,4.50490625,2452.9,2452.0,4.00703]
[1725204693121,0.74490625,2452.9,2452.0,3.5992]
[1725204693333,0.00610625,2452.9,2452.4,0.40776]
[1725204693518,0.00610625,2452.9,2452.5,0.365]
[1725204693720,0.00610625,2452.9,2452.6,3.2078]
[1725204694218,0.00610625,2452.9,2452.5,0.365]
[1725204695323,0.40771,2452.8,2452.5,0.365]
[1725204695923,0.00610625,2452.9,2452.5,7.6504]
[1725204696230,0.00610625,2452.9,2452.6,0.3607]
[1725204696725,0.00610625,2452.9,2452.6,4.4375]
[1725204696931,0.00610625,2452.9,2452.7,5.64319726]
[1725204697126,0.00610625,2452.9,2452.8,0.40771]
[1725204697334,0.00610625,2452.9,2452.8,4.48451]
[1725204697518,0.00610625,2452.9,2452.8,5.71261684]
[1725204697718,0.00610625,2452.9,2452.6,0.3607]
[1725204698424,0.00610625,2452.9,2452.7,5.24597156]
[1725204698625,0.00610625,2452.9,2452.8,0.40771]
[1725204699417,0.00610625,2452.9,2452.8,13.03551601]
[1725204699825,0.00610625,2452.9,2452.8,5.34320601]
[1725204700029,0.00610625,2452.9,2452.7,3.2078]
[1725204701236,0.00610625,2452.9,2452.5,0.365]
[1725204701424,0.00610625,2452.9,2452.4,3.569]
[1725204701425,0.40774,2452.7,2452.4,3.2078]
[1725204701927,4.76378567,2452.8,2452.4,3.2078]
[1725204702629,0.40772,2452.8,2452.4,3.2078]
[1725204703331,0.41381625,2452.9,2452.4,3.2078]
[1725204703532,0.41381625,2452.9,2452.5,0.3922]
[1725204704033,0.00610625,2452.9,2452.5,0.3922]
[1725204704222,0.40775,2452.6,2452.3,4.0874]
[1725204704425,3.21390625,2452.9,2452.3,4.0874]
[1725204704632,0.40774,2452.7,2452.3,4.0874]
[1725204705530,3.21390625,2452.9,2452.3,4.0874]
[1725204705724,0.40776,2452.5,2452.3,4.0874]
[1725204705921,3.2078,2452.6,2452.0,0.3922]
[1725204706125,0.40781,2452.3,2452.0,0.3922]
[1725204706732,0.40779,2452.4,2452.0,0.3922]
[1725204707233,0.40779,2452.4,2451.8,3.61567]
[1725204707234,4.64606405,2452.3,2451.8,3.2078]
[1725204707440,4.64606405,2452.3,2451.6,0.7549]
[1725204707735,3.76,2452.0,2451.5,3.2078]
[1725204707938,0.40794,2451.5,2451.2,3.2078]
[1725204708230,0.40794,2451.5,2450.4,4.168]
[1725204708231,0.40802,2451.0,2450.4,3.2078]
[1725204708432,0.40802,2451.0,2450.4,3.61591]
[1725204708642,3.91660323,2450.9,2450.3,0.40813]
[1725204708930,3.91660323,2450.9,2450.4,3.61591]
[1725204709132,4.32463323,2450.9,2450.4,3.2078]
[1725204709332,4.32463323,2450.9,2450.4,3.1876]
[1725204709633,0.40803,2450.9,2450.4,3.1472]
[1725204709836,4.67882724,2450.8,2450.4,3.127]
[1725204710033,4.67882724,2450.8,2450.4,3.1068]
[1725204710236,4.67882724,2450.8,2450.2,0.3625]
[1725204710237,4.67882724,2450.8,2450.2,3.2078]
[1725204710541,4.75180381,2450.8,2450.3,3.1876]
[1725204710734,4.75180381,2450.8,2450.7,0.40806]
[1725204710735,4.34374381,2450.8,2450.7,0.40806]
[1725204711037,0.40798,2451.2,2450.6,3.61587]
[1725204711226,0.40797,2451.3,2450.6,3.57547]
[1725204711430,4.66435979,2451.2,2450.6,3.55527]
[1725204711742,0.40798,2451.2,2450.6,3.127]
[1725204712036,0.40797,2451.3,2450.7,0.40805]
[1725204712232,0.40797,2451.3,2450.7,0.38785]
[1725204712434,5.10841478,2451.3,2450.6,3.49467]
[1725204712626,5.10841478,2451.3,2450.6,3.0866]
[1725204712627,0.40799,2451.2,2450.6,3.0866]
[1725204712826,4.70044478,2451.3,2450.6,3.0866]
[1725204713024,5.14367606,2451.1,2450.6,3.0866]
[1725204713236,8.49566606,2451.3,2450.6,3.0866]
[1725204713537,5.14368606,2451.0,2450.6,3.0866]
[1725204713833,0.40802,2451.0,2450.6,3.0866]
[1725204714035,0.408,2451.1,2450.6,3.0866]
[1725204714341,0.40798,2451.2,2450.6,3.0866]
[1725204714531,3.76,2451.3,2450.7,0.40805]
[1725204714730,3.76,2451.3,2450.6,3.49467]
[1725204714731,4.16797,2451.3,2450.6,3.49467]
[1725204714929,4.93186039,2451.2,2450.6,3.49467]
[1725204715237,0.408,2451.1,2450.6,3.0866]
[1725204715535,0.40806,2450.8,2450.6,3.0866]
[1725204715741,0.40807,2450.7,2450.0,0.40818]
[1725204716038,0.4081,2450.5,2450.1,3.2078]
[1725204716337,0.40816,2450.1,2449.9,0.3819]
[1725204716534,0.40821,2449.9,2449.5,3.2078]
[1725204716741,0.40823,2449.7,2449.5,3.2078]
[1725204716942,4.00253609,2449.8,2449.5,3.2078]
[1725204717128,0.40823,2449.7,2449.5,3.2078]
[1725204717445,0.95170139,2449.6,2449.1,3.2078]
[1725204718143,3.2078,2449.8,2449.4,3.2078]
[1725204718440,0.20298207,2450.1,2449.7,3.2078]
[1725204718636,0.40819,2450.0,2449.5,0.3669]
[1725204718834,5.08880661,2450.1,2449.6,0.40824]
[1725204719034,4.68063661,2450.1,2449.7,3.2078]
[1725204719232,4.68063661,2450.1,2449.8,0.4082]
[1725204719437,4.68063661,2450.1,2449.8,0.40821]
[1725204719643,0.39711908,2450.2,2449.8,0.40821]
[1725204719939,0.00611908,2450.2,2449.7,3.2078]
[1725204720138,0.00611908,2450.2,2450.1,0.40816]
[1725204720438,0.00611908,2450.2,2450.0,3.61597]
[1725204720632,0.00611908,2450.2,2450.1,0.40816]
[1725204721037,0.00611908,2450.2,2450.1,4.48976]
[1725204721244,3.76,2451.2,2450.1,23.81898002]
[1725204721535,3.76,2451.2,2450.7,3.61585]
[1725204721734,4.16798,2451.2,2450.7,3.2078]
[1725204721929,3.76,2451.2,2450.8,0.40804]
[1725204722329,3.76611908,2451.2,2450.8,0.00611908]
[1725204722531,4.41336437,2451.1,2450.8,0.41415908]
[1725204722839,3.76611908,2451.2,2451.0,3.2078]
[1725204722840,0.00611908,2451.2,2451.0,3.2078]
[1725204723037,7.41606,2452.0,2451.4,0.40794]
[1725204723243,7.41606,2452.0,2451.3,3.2078]
[1725204723244,0.40787,2451.9,2451.3,3.2078]
[1725204723542,5.00501038,2451.9,2451.4,3.2078]
[1725204723745,4.59714038,2451.9,2451.4,3.61573]
[1725204724137,4.39656089,2451.9,2451.4,3.61573]
[1725204724539,4.39656089,2451.9,2451.1,3.574]
[1725204724744,0.40799,2451.2,2450.9,0.3656]
[1725204724949,3.76,2451.4,2450.8,0.00611908]
[1725204725149,0.40801,2451.1,2450.8,0.00611908]
[1725204725444,0.40803,2450.9,2450.8,0.00611908]
[1725204725653,4.168,2451.1,2450.8,0.00611908]
[1725204725842,3.76,2451.1,2450.8,0.00611908]
[1725204726048,0.40803,2450.9,2450.8,0.00611908]
[1725204726545,4.08,2450.9,2450.8,0.00611908]
[1725204726746,4.48803,2450.9,2450.8,0.00611908]
[1725204727647,10.48803,2450.9,2450.8,0.00611908]
[1725204727948,0.40812,2450.4,2450.2,3.2078]
[1725204728250,0.40814,2450.3,2449.7,3.61603]
[1725204728446,0.40815,2450.2,2449.7,3.61603]
[1725204728745,0.40817,2450.1,2449.6,4.0874]
[1725204728934,0.41426908,2450.2,2449.7,0.00611908]
[1725204729141,0.40816,2450.1,2449.7,0.00611908]
[1725204729344,0.41426908,2450.2,2449.7,0.00611908]
[1725204729549,0.41426908,2450.2,2449.7,0.41434908]
[1725204729850,4.29000125,2450.1,2449.7,0.00611908]
[1725204730150,4.29000125,2450.1,2449.8,0.40821]
[1725204730553,0.00611908,2450.2,2449.8,0.40821]
[1725204730748,0.00611908,2450.2,2449.7,0.00611908]
[1725204731043,0.00611908,2450.2,2449.9,0.40819]
[1725204731246,0.00611908,2450.2,2449.8,3.2078]
[1725204731441,0.00611908,2450.2,2450.1,3.61596]
[1725204731645,0.00611908,2450.2,2450.1,0.40816]
[1725204731840,0.00611908,2450.2,2450.1,8.07506]
[1725204732649,0.00611908,2450.2,2450.1,4.86726]
[1725204733547,0.00611908,2450.2,2450.1,4.4591]
[1725204733753,0.00611908,2450.2,2450.1,4.86726]
[1725204733948,0.00611908,2450.2,2450.1,13.4712665]
[1725204734746,0.00611908,2450.2,2450.1,8.07506]
[1725204734962,0.00611908,2450.2,2450.1,13.2982246]
[1725204735453,0.3837,2450.9,2450.5,0.40809]
[1725204735748,0.79173,2450.9,2450.4,0.4081]
[1725204735950,0.3837,2450.9,2450.5,0.40809]
[1725204736352,4.32802,2451.0,2450.5,0.40809]
[1725204736554,4.33413908,2451.0,2450.5,0.40809]
[1725204737049,4.33412908,2451.0,2450.5,0.40809]
[1725204737347,0.40803,2450.9,2450.4,3.2078]
[1725204737544,0.40803,2450.9,2450.4,3.6159]
[1725204737944,0.40806,2450.8,2450.4,3.2078]
[1725204738136,0.40806,2450.8,2450.4,3.61591]
[1725204738651,0.40804,2450.9,2450.4,3.61591]
[1725204738853,4.38188173,2450.7,2450.4,3.2078]
[1725204739055,0.40805,2450.8,2450.4,3.2078]
[1725204739253,3.92611908,2451.0,2450.4,3.2078]
[1725204739551,0.00611908,2451.0,2450.9,0.40803]
[1725204740051,0.00611908,2451.0,2450.9,4.48803]
[1725204740244,0.00611908,2451.0,2450.8,0.3916]
[1725204740445,0.00611908,2451.0,2450.8,0.79963]
[1725204740645,0.00611908,2451.0,2450.7,8.78765552]
[1725204741154,0.00611908,2451.0,2450.7,16.07545552]
[1725204741357,0.00611908,2451.0,2450.9,0.40803]
[1725204741547,0.00611908,2451.0,2450.7,11.99545552]
[1725204742144,0.00611908,2451.0,2450.9,0.40803]
[1725204742445,0.00611908,2451.0,2450.9,6.40803]
[1725204742649,0.00611908,2451.0,2450.9,15.69581384]
[1725204742650,2.566e-05,2451.0,2450.9,15.69581384]
[1725204742852,2.566e-05,2451.0,2450.9,16.47251384]
[1725204743059,2.566e-05,2451.0,2450.9,10.47251384]
[1725204743265,2.566e-05,2451.0,2450.9,17.49259384]
[1725204743552,4.2892,2451.8,2451.5,0.40792]
[1725204744748,4.2892,2451.8,2451.4,0.00611908]
[1725204744954,0.40793,2451.5,2451.4,0.00611908]
[1725204745456,5.09391756,2451.7,2451.4,0.00611908]
[1725204745649,4.68601756,2451.7,2451.4,0.00611908]
[1725204745955,0.40793,2451.5,2451.4,0.00611908]
[1725204746262,4.68601756,2451.7,2451.4,0.00611908]
[1725204746649,0.40793,2451.5,2451.4,0.00611908]
[1725204746853,0.40795,2451.4,2450.6,3.2078]
[1725204747158,0.40799,2451.2,2450.7,0.40806]
[1725204747659,4.55034685,2451.1,2450.7,0.40806]
[1725204747859,4.55034685,2451.1,2450.7,0.00611908]
[1725204748161,3.2078,2451.3,2450.9,3.2078]
[1725204748358,4.54659,2451.8,2451.4,0.40795]
[1725204748564,0.4079,2451.7,2451.3,0.40796]
[1725204748754,8.82162916,2451.8,2451.4,0.40794]
[1725204749360,4.1387,2451.8,2451.5,0.40793]
[1725204749663,4.1387,2451.8,2451.5,0.40792]
[1725204749862,0.00611908,2451.9,2451.4,3.2078]
[1725204750657,0.00611908,2451.9,2451.6,0.40791]
[1725204750967,0.00611908,2451.9,2451.5,1.17422]
[1725204751261,0.00611908,2451.9,2451.6,0.4079]
[1725204751564,0.00611908,2451.9,2451.8,0.40788]
[1725204752361,0.00611908,2451.9,2451.7,0.40789]
[1725204752561,0.00611908,2451.9,2451.8,0.40788]
[1725204753564,0.00611908,2451.9,2451.8,4.48628]
[1725204753764,0.00611908,2451.9,2451.8,0.40788]
[1725204754067,0.00611908,2451.9,2451.5,0.7663]
[1725204754068,0.41398908,2451.9,2451.5,0.7663]
[1725204754363,0.41398908,2451.9,2451.5,1.17423]
[1725204754565,0.00611908,2451.9,2451.5,0.7663]
[1725204754956,0.00611908,2451.9,2451.8,0.40788]
[1725204755357,0.00611908,2451.9,2451.8,4.48628]
[1725204755955,9.08e-06,2451.9,2451.8,16.72114159]
[1725204756161,0.0404,2452.0,2451.9,0.40786]
[1725204756366,0.0404,2452.0,2451.9,4.48626]
[1725204756562,0.0404,2452.0,2451.9,24.13387465]
[1725204759370,9.08e-06,2452.2,2452.1,1.42741]
[1725204759670,9.08e-06,2452.2,2452.1,18.47203914]
[1725204759868,9.08e-06,2452.2,2452.1,29.57001914]
[1725204760072,0.3578,2453.2,2453.1,0.40766]
[1725204760267,0.3578,2453.2,2452.7,4.49512]
[1725204760268,4.52546,2453.2,2452.7,4.49512]
[1725204760571,4.39674047,2453.1,2452.7,4.49512]
[1725204760773,4.1178,2453.2,2452.7,4.0874]
[1725204760958,0.3578,2453.2,2453.0,0.40767]
[1725204761269,0.36391908,2453.2,2453.0,0.40767]
[1725204762261,0.00611908,2453.2,2452.8,0.3594]
[1725204762866,0.00611908,2453.2,2453.1,0.40766]
[1725204763267,0.00611908,2453.2,2453.1,4.48366]
[1725204763669,0.00611908,2453.2,2453.1,0.40766]
[1725204763865,0.00611908,2453.2,2453.1,4.48366]
[1725204766567,0.00611908,2453.2,2453.1,9.86961132]
[1725204768071,0.00611908,2453.2,2453.1,0.40766]
[1725204769273,0.00611908,2453.2,2453.1,4.48366]
[1725204769869,0.00611908,2453.2,2453.1,4.86516]
[1725204770365,0.00611908,2453.2,2453.1,16.07754608]
[1725204770366,9.08e-06,2453.2,2453.1,16.07754608]
[1725204770766,9.08e-06,2453.2,2453.1,17.09670608]
[1725204770962,9.08e-06,2453.2,2453.1,26.08102249]
[1725204771168,9.08e-06,2453.2,2453.1,30.86018249]
[1725204772371,9.08e-06,2453.2,2453.1,31.40252996]
[1725204773469,9.08e-06,2453.2,2453.1,31.47740723]
[1725204774680,9.08e-06,2453.2,2453.1,31.81052996]
[1725204774874,9.08e-06,2453.2,2453.1,31.88540717]
[1725204775073,0.3864,2454.5,2454.4,0.40745]
[1725204775471,4.4608,2454.5,2454.4,0.40745]
[1725204775878,0.3864,2454.5,2454.4,0.40745]
[1725204776571,0.3866,2454.6,2454.5,0.40743]
[1725204776967,0.3866,2454.6,2454.4,3.61524]
[1725204777177,4.86841,2454.6,2454.2,0.00611908]
[1725204777474,0.3866,2454.6,2454.2,0.41359908]
[1725204777872,0.3866,2454.6,2454.2,0.00611908]
[1725204778375,0.3866,2454.6,2454.3,0.40746]
[1725204778682,0.3866,2454.6,2454.2,0.00611908]
[1725204778878,0.3866,2454.6,2454.5,0.40743]
[1725204780374,0.00611908,2454.7,2454.6,0.40741]
[1725204782179,0.00611908,2454.7,2454.6,8.79998332]
[1725204782381,9.08e-06,2454.7,2454.6,20.14773444]
[1725204782581,3.2078,2455.7,2455.4,0.40728]
[1725204782582,0.7323,2455.5,2455.4,0.40728]
[1725204782785,0.3568,2455.5,2455.4,0.40728]
[1725204783288,0.7355,2456.1,2455.4,9.30423122]
[1725204783581,0.3587366,2456.0,2455.9,0.4072]
[1725204783777,0.3587366,2456.0,2455.8,0.40721]
[1725204784984,0.3587366,2456.0,2455.7,3.2078]
[1725204785373,0.3587366,2456.0,2455.8,0.40721]
[1725204785872,0.3587366,2456.0,2455.7,3.2078]
[1725204786071,0.3587366,2456.0,2455.8,0.4072]
[1725204786475,0.3587366,2456.0,2455.7,3.61502]
[1725204787579,0.3587366,2456.0,2455.9,0.4072]
[1725204787877,0.3587366,2456.0,2455.8,0.40721]
[1725204788384,0.3587366,2456.0,2455.9,0.4072]
[1725204789481,0.3587366,2456.0,2455.9,4.4792]
[1725204789482,0.0040366,2456.0,2455.9,4.4792]
[1725204790189,0.0040366,2456.0,2455.9,0.4072]
[1725204790883,4.0760366,2456.0,2455.7,3.2078]
[1725204791077,4.0760366,2456.0,2455.8,0.40721]
[1725204791078,0.757,2455.9,2455.8,0.40721]
[1725204791587,4.829,2455.9,2455.7,3.61503]
[1725204791778,0.757,2455.9,2455.7,3.61503]
[1725204792480,0.757,2455.9,2455.7,3.2078]
[1725204792685,0.0040366,2456.0,2455.7,3.2078]
[1725204792686,0.0040366,2456.0,2455.9,0.4072]
[1725204792882,0.0040366,2456.0,2455.9,4.4792]
[1725204793181,0.0040366,2456.0,2455.9,4.8431]
[1725204793776,0.0040366,2456.0,2455.9,18.84462523]
[1725204793978,6.6e-06,2456.0,2455.9,26.0634591]
[1725204794381,6.6e-06,2456.0,2455.9,26.13826024]
[1725204794579,6.6e-06,2456.0,2455.9,26.54546024]
[1725204794886,6.6e-06,2456.0,2455.9,26.54545812]
[1725204795482,0.3758,2456.9,2456.7,0.40706]
[1725204795680,0.3758,2456.9,2456.6,0.40708]
[1725204796181,0.3758,2456.9,2456.8,0.40705]
[1725204796483,0.3758,2456.9,2456.7,0.40706]
[1725204797274,0.3758,2456.9,2456.6,0.40707]
[1725204797478,0.3758,2456.9,2456.7,0.40705]
[1725204797680,0.3758,2456.9,2456.6,0.40707]
[1725204798088,0.3758,2456.9,2456.5,3.61489]
[1725204798881,0.3758,2456.9,2456.5,3.2078]
[1725204799093,0.40711,2456.5,2455.8,8.0829]
[1725204799283,1.0942,2456.4,2455.8,8.0829]
[1725204799486,1.0942,2456.4,2455.9,8.56898174]
[1725204799790,1.50133,2456.4,2455.8,7.70241]
[1725204799989,1.0942,2456.4,2456.0,0.40718]
[1725204800179,1.0942,2456.4,2456.3,0.40713]
[1725204800382,0.3755,2456.4,2456.3,0.40713]
[1725204800585,0.3741,2456.9,2456.5,0.40709]
[1725204800789,0.7496,2456.9,2456.5,0.40709]
[1725204801376,0.7496,2456.9,2456.6,0.40708]
[1725204801586,0.7496,2456.9,2456.8,0.40705]
[1725204802192,0.7446,2457.3,2456.8,4.0704]
[1725204802395,0.3868,2457.2,2456.9,0.40702]
[1725204802784,0.3868,2457.2,2457.0,0.40701]
[1725204803192,0.3868,2457.2,2456.9,0.40702]
[1725204803696,0.3868,2457.2,2457.0,0.40701]
[1725204803891,0.3868,2457.2,2456.8,0.0061065]
[1725204804195,0.77831,2457.7,2457.1,0.407]
[1725204804387,0.77831,2457.7,2457.0,3.61481]
[1725204804388,1.15412,2457.6,2457.0,3.61481]
[1725204804894,0.40693,2457.5,2457.0,3.2078]
[1725204805284,1.15413,2457.6,2457.0,3.61482]
[1725204805482,0.7472,2457.6,2457.1,0.407]
[1725204805699,0.7472,2457.6,2457.2,0.40697]
[1725204805992,0.7472,2457.6,2457.1,0.40699]
[1725204806293,0.40694,2457.5,2457.0,3.2078]
[1725204806488,0.40695,2457.4,2457.0,3.2078]
[1725204806791,0.40698,2457.3,2457.0,3.2078]
[1725204807293,4.43493585,2457.5,2457.0,3.2078]
[1725204807496,4.84187585,2457.5,2457.0,3.61481]
[1725204807892,4.43493585,2457.5,2457.1,0.407]
[1725204808097,0.7472,2457.6,2457.3,0.40696]
[1725204808291,0.7472,2457.6,2457.1,5.19122255]
[1725204808492,0.7472,2457.6,2457.3,0.40695]
[1725204808990,0.7472,2457.6,2457.2,0.7151]
[1725204809193,0.7472,2457.6,2457.3,3.2078]
[1725204809495,0.3719,2458.0,2457.5,0.40693]
[1725204809700,1.0975,2458.0,2457.3,8.38151348]
[1725204809998,5.51167058,2458.0,2457.3,8.38151348]
[1725204810195,5.51167058,2458.0,2457.7,0.4069]
[1725204810691,0.7256,2458.0,2457.7,0.4069]
[1725204810899,0.7256,2458.0,2457.6,3.61471]
[1725204811600,0.7256,2458.0,2457.7,0.4069]
[1725204812889,0.7256,2458.0,2457.8,0.40688]
[1725204813089,0.77869,2458.4,2457.9,0.40687]
[1725204813293,0.7437,2458.4,2458.1,0.40683]
[1725204813504,0.7437,2458.4,2458.0,0.40684]
[1725204814298,0.3579,2458.4,2458.3,0.4068]
[1725204814500,0.40674,2458.7,2458.2,0.40681]
[1725204814897,4.9819808,2458.7,2458.1,0.4129265]
[1725204815098,0.40675,2458.6,2458.1,0.4129265]
[1725204815498,4.9819708,2458.7,2458.2,0.40681]
[1725204815704,1.15183,2458.8,2458.3,0.40679]
[1725204815899,1.15183,2458.8,2458.4,0.40677]
[1725204816198,1.15183,2458.8,2458.2,14.21769037]
[1725204816199,0.3579,2458.8,2458.2,14.21769037]
[1725204816400,0.3579,2458.8,2458.4,0.40678]
[1725204816698,0.3579,2458.8,2458.3,3.2078]
[1725204816902,0.40673,2458.7,2458.3,3.2078]
[1725204817089,0.40676,2458.6,2458.3,3.2078]
[1725204817405,0.40674,2458.7,2458.3,3.2078]
[1725204817610,0.40675,2458.6,2458.3,3.2078]
[1725204818000,0.40675,2458.6,2458.2,0.40682]
[1725204818300,0.40677,2458.5,2458.1,0.0061065]
[1725204819302,0.40679,2458.4,2458.1,0.0061065]
[1725204819507,0.40676,2458.6,2458.3,3.2078]
[1725204820293,0.3579,2458.8,2458.4,0.40677]
[1725204820602,0.3579,2458.8,2458.4,0.40678]
[1725204820991,0.3579,2458.8,2458.3,3.2078]
[1725204821198,0.3579,2458.8,2458.6,0.40674]
[1725204821392,0.3579,2458.8,2458.5,0.40676]
[1725204821599,0.3579,2458.8,2458.6,0.40675]
[1725204821801,0.3579,2458.8,2458.5,0.40676]
[1725204822001,0.3579,2458.8,2458.5,5.73302612]
[1725204822205,0.3579,2458.8,2458.5,5.32626612]
[1725204822605,0.3579,2458.8,2458.5,5.73303612]
[1725204823509,0.3579,2458.8,2458.5,5.32626612]
[1725204824006,0.40674,2458.7,2458.4,0.7327]
[1725204824305,0.76463,2458.8,2458.4,0.7327]
[1725204824508,0.40673,2458.7,2458.4,0.7327]
[1725204824698,0.76463,2458.8,2458.4,0.7327]
[1725204825111,0.3579,2458.8,2458.4,0.7327]
[1725204825302,0.40678,2458.4,2458.1,0.0061065]
[1725204826104,0.40677,2458.5,2458.1,0.0061065]
[1725204826696,0.40679,2458.4,2458.1,0.0061065]
[1725204827304,0.40682,2458.2,2458.1,0.0061065]
[1725204827693,4.47482,2458.2,2458.1,0.0061065]
[1725204828204,4.068,2458.2,2458.1,0.0061065]
[1725204828405,0.3882,2458.3,2458.1,0.0061065]
[1725204828602,0.40676,2458.6,2458.1,0.4129365]
[1725204828803,1.14684,2458.7,2458.2,0.40681]
[1725204829103,1.14684,2458.7,2458.3,0.4068]
[1725204829104,0.7401,2458.7,2458.3,0.4068]
[1725204829300,0.3768,2458.7,2458.4,0.40678]
[1725204829509,0.97411605,2459.0,2458.5,0.78247]
[1725204829703,0.4067,2458.9,2458.5,0.3757]
[1725204831604,0.4067,2458.9,2458.3,8.37923159]
[1725204831605,4.9689708,2458.8,2458.3,0.40679]
[1725204831810,4.9689708,2458.8,2458.3,0.77509]
[1725204832011,0.40673,2458.8,2458.3,0.77509]
[1725204832310,0.40673,2458.8,2458.4,0.40678]
[1725204832621,0.40672,2458.9,2458.5,0.40676]
[1725204832803,0.3768,2459.0,2458.7,0.40673]
[1725204833609,0.3768,2459.0,2458.3,3.5761]
[1725204833907,0.3843,2459.2,2458.9,0.4067]
[1725204834408,0.78044,2459.3,2459.0,0.3729]
[1725204834615,1.14214,2459.3,2459.0,0.3729]
[1725204835806,0.7355,2459.3,2459.0,0.77957]
[1725204837210,0.78044,2459.3,2459.0,0.3729]
[1725204837802,0.3738,2459.3,2459.0,0.77958]
[1725204838200,0.7725,2459.6,2459.0,0.3729]
[1725204838403,0.3715,2459.5,2459.0,0.3729]
[1725204838906,0.3715,2459.5,2459.3,0.40663]
[1725204839308,0.3715,2459.5,2459.2,0.40664]
[1725204840411,0.3715,2459.5,2459.2,0.75994]
[1725204840812,0.40656,2459.8,2459.4,0.40661]
[1725204841017,0.77256,2459.8,2459.4,0.4127165]
[1725204841209,5.36170605,2459.8,2459.4,0.4127165]
[1725204841610,0.77256,2459.8,2459.4,0.4127165]